bitfinex/quotes_SOLUSD_20240624
["timestamp","ask_amount","ask_price","bid_price","bid_amount"]
[1719228236639,7.9004,126.58,126.53,4.7896]
[1719228236940,7.8993,126.6,126.53,388.6896]
[1719228237111,7.8979,126.62,126.54,224.4553]
[1719228237316,7.8977,126.62,126.56,6.2896]
[1719228237516,1.98148251,126.67,126.56,6.2896]
[1719228237716,7.897,126.63,126.56,206.2896]
[1719228237902,1.98148251,126.67,126.56,6.2896]
[1719228238103,7.8973,126.63,126.56,106.2896]
[1719228238638,7.8973,126.63,126.56,6.2896]
[1719228238930,7.8969,126.64,126.56,106.2896]
[1719228239109,8.40422222,126.67,126.56,6.2896]
[1719228239517,7.8986,126.61,126.56,6.2896]
[1719228239720,7.8985,126.61,126.56,6.2896]
[1719228240108,7.8978,126.62,126.56,6.2896]
[1719228240304,7.8982,126.61,126.56,6.2896]
[1719228240624,8.40422222,126.67,126.57,15.1128]
[1719228240817,31.54,126.68,126.57,506.9135]
[1719228240818,7.896,126.65,126.57,506.9135]
[1719228241137,7.8954,126.66,126.57,506.9135]
[1719228241619,7.8958,126.65,126.57,506.9135]
[1719228241821,1.98148251,126.7,126.61,15.4777]
[1719228242334,8.19696045,126.71,126.62,7.8973]
[1719228242548,7.8929,126.7,126.62,107.8976]
[1719228242704,7.8925,126.71,126.62,100.0]
[1719228242905,7.8917,126.72,126.65,6.3514]
[1719228243218,31.629518,126.76,126.66,16.6247]
[1719228243219,7.8922,126.71,126.66,16.6247]
[1719228243628,7.8917,126.72,126.66,16.6247]
[1719228243822,1.98148251,126.76,126.67,0.65541053]
[1719228244134,7.8909,126.73,126.67,0.65541053]
[1719228244816,7.8909,126.73,126.66,116.6247]
[1719228244817,7.8921,126.71,126.66,16.6247]
[1719228245425,7.8918,126.72,126.66,16.6247]
[1719228245618,7.8922,126.71,126.66,16.6247]
[1719228246022,7.8935,126.69,126.66,16.6247]
[1719228246223,1.98148251,126.75,126.66,16.6247]
[1719228246440,7.8928,126.7,126.66,16.6247]
[1719228246739,26.98,126.72,126.66,16.6247]
[1719228246920,26.98,126.74,126.66,16.6247]
[1719228247119,7.8921,126.71,126.66,16.6247]
[1719228247336,26.98,126.74,126.66,16.6247]
[1719228247640,7.8919,126.72,126.66,16.6247]
[1719228247842,7.8921,126.71,126.66,16.6247]
[1719228248036,7.8927,126.7,126.66,16.6247]
[1719228248344,7.8945,126.67,126.66,16.6247]
[1719228248517,26.98,126.71,126.66,16.6247]
[1719228248712,26.98,126.72,126.66,16.6247]
[1719228248929,34.8715,126.72,126.66,16.6247]
[1719228249215,26.98,126.72,126.66,16.6247]
[1719228249623,26.98,126.7,126.66,16.6247]
[1719228250236,7.8945,126.67,126.66,16.6247]
[1719228250537,7.8938,126.69,126.65,6.3514]
[1719228250734,7.8941,126.68,126.65,6.3514]
[1719228250938,1.98148251,126.71,126.65,6.3514]
[1719228251120,7.8943,126.68,126.65,6.3514]
[1719228251320,26.98,126.72,126.65,6.3514]
[1719228251321,7.8947,126.67,126.65,6.3514]
[1719228251542,7.8946,126.67,126.65,6.3514]
[1719228251835,7.894,126.68,126.65,6.3514]
[1719228252228,7.8946,126.67,126.65,6.3514]
[1719228252416,7.8951,126.66,126.65,6.3514]
[1719228252622,7.8963,126.64,126.63,15.1612]
[1719228252819,7.8959,126.65,126.63,15.1612]
[1719228253132,7.8961,126.65,126.63,15.1612]
[1719228254824,7.8953,126.66,126.63,15.1612]
[1719228255243,7.8958,126.65,126.63,15.1612]
[1719228255437,7.8963,126.64,126.63,15.1612]
[1719228256947,26.98,126.67,126.62,6.1909]
[1719228257124,7.8966,126.64,126.62,6.1909]
[1719228257333,7.897,126.63,126.62,6.1909]
[1719228257537,7.8966,126.64,126.62,6.1909]
[1719228258744,7.8966,126.64,126.59,22.7648]
[1719228258745,26.98,126.64,126.59,22.7648]
[1719228258931,7.8971,126.63,126.59,22.7648]
[1719228259138,26.98,126.64,126.59,22.7648]
[1719228259340,34.8765,126.64,126.59,22.7648]
[1719228259526,0.78995182,126.61,126.59,22.7648]
[1719228262865,8.68825182,126.61,126.59,22.7648]
[1719228263225,0.78995182,126.61,126.59,22.7648]
[1719228263848,8.68855182,126.61,126.59,22.7648]
[1719228264824,7.9004,126.58,126.55,21.2185]
[1719228265253,27.76995182,126.61,126.55,21.2185]
[1719228265426,7.9013,126.56,126.55,21.2185]
[1719228265737,27.76995182,126.61,126.55,21.2185]
[1719228265940,7.9009,126.57,126.55,21.2185]
[1719228266162,7.9003,126.58,126.55,21.2185]
[1719228266341,7.8998,126.59,126.55,21.2185]
[1719228266641,27.76995182,126.61,126.55,21.2185]
[1719228266835,7.9004,126.58,126.55,21.2185]
[1719228267547,7.8997,126.59,126.55,21.2185]
[1719228267748,7.9001,126.58,126.55,21.2185]
[1719228267939,7.9011,126.57,126.55,21.2185]
[1719228268252,7.9004,126.58,126.55,21.2185]
[1719228269746,0.78995182,126.61,126.55,21.2185]
[1719228270045,0.78995182,126.61,126.56,46.08875864]
[1719228270423,8.68855182,126.61,126.56,46.08875864]
[1719228271130,0.78995182,126.61,126.56,45.0]
[1719228272449,8.68845182,126.61,126.56,45.0]
[1719228272649,7.8991,126.6,126.56,45.0]
[1719228272832,0.78995182,126.61,126.56,45.0]
[1719228273029,8.68845182,126.61,126.56,45.0]
[1719228273227,0.78995182,126.61,126.56,45.0]
[1719228273429,8.68825182,126.61,126.56,45.0]
[1719228273934,7.8991,126.6,126.56,45.0]
[1719228274256,7.8996,126.59,126.56,45.0]
[1719228274433,7.899,126.6,126.56,45.0]
[1719228275151,8.68835182,126.61,126.56,45.0]
[1719228276562,8.68835182,126.61,126.56,528.9]
[1719228276563,0.78995182,126.61,126.56,528.9]
[1719228277001,0.78995182,126.61,126.58,100.0]
[1719228277259,0.78995182,126.61,126.56,428.9]
[1719228277260,0.78995182,126.61,126.56,528.9]
[1719228278069,7.8958,126.65,126.58,121.4942]
[1719228278261,7.8958,126.65,126.58,505.3942]
[1719228278435,26.98,126.67,126.58,505.3942]
[1719228279048,7.8958,126.65,126.58,505.3942]
[1719228279257,26.98,126.67,126.58,505.3942]
[1719228279258,7.8965,126.64,126.58,505.3942]
[1719228279575,7.8959,126.65,126.58,505.3942]
[1719228280246,26.98,126.67,126.6,100.0]
[1719228280464,26.98,126.67,126.58,405.3942]
[1719228280759,7.8987,126.61,126.58,405.3942]
[1719228280959,7.8978,126.62,126.58,405.3942]
[1719228281140,7.8985,126.61,126.58,405.3942]
[1719228281339,7.8966,126.64,126.58,405.3942]
[1719228281952,7.8966,126.64,126.58,21.4942]
[1719228282284,7.897,126.63,126.58,21.4942]
[1719228282444,26.98,126.67,126.58,21.4942]
[1719228282770,7.8967,126.64,126.58,21.4942]
[1719228283669,7.8959,126.65,126.59,100.0]
[1719228284245,7.8954,126.66,126.59,200.0]
[1719228284776,7.8959,126.65,126.59,200.0]
[1719228285261,7.8954,126.66,126.59,200.0]
[1719228285468,7.8954,126.66,126.6,1.58519256]
[1719228286875,7.8947,126.67,126.6,1.58519256]
[1719228287048,7.8937,126.69,126.63,115.9702]
[1719228287250,7.8929,126.7,126.63,115.9702]
[1719228287472,7.8934,126.69,126.63,115.9702]
[1719228287644,7.8929,126.7,126.63,15.9702]
[1719228288367,7.8929,126.7,126.64,100.0]
[1719228288661,7.8935,126.69,126.65,0.75064465]
[1719228289060,7.8939,126.68,126.65,0.75064465]
[1719228289364,26.98,126.72,126.63,399.8702]
[1719228289365,7.8949,126.67,126.63,399.8702]
[1719228290265,7.8961,126.65,126.63,399.8702]
[1719228290440,26.98,126.67,126.63,399.8702]
[1719228290647,7.8963,126.64,126.63,383.9]
[1719228290846,26.98,126.67,126.61,6.2709]
[1719228292070,7.8966,126.64,126.61,6.2709]
[1719228294963,7.8982,126.61,126.6,16.5914]
[1719228295172,7.8979,126.62,126.6,16.5914]
[1719228295745,7.8973,126.63,126.6,16.5914]
[1719228296476,7.8984,126.61,126.58,6.1078]
[1719228296667,7.8989,126.6,126.57,15.8793]
[1719228297167,7.8985,126.61,126.57,15.8793]
[1719228298167,7.899,126.6,126.57,15.8793]
[1719228299492,0.79007664,126.58,126.57,15.8793]
[1719228301865,0.79007664,126.58,126.55,6.5662]
[1719228301866,8.69017664,126.58,126.55,6.5662]
[1719228302080,0.79007664,126.58,126.55,6.5662]
[1719228303378,8.69047664,126.58,126.55,6.5662]
[1719228303675,0.79007664,126.58,126.55,6.5662]
[1719228304664,0.79007664,126.58,126.54,15.1281]
[1719228304977,7.9017,126.56,126.52,6.0673]
[1719228305169,7.902,126.55,126.52,6.0673]
[1719228305553,0.79007664,126.58,126.52,6.0673]
[1719228305554,7.9015,126.56,126.52,6.0673]
[1719228305774,7.9021,126.55,126.52,6.0673]
[1719228305988,7.9016,126.56,126.52,6.0673]
[1719228306278,0.79007664,126.58,126.52,6.0673]
[1719228306481,7.9017,126.56,126.52,6.0673]
[1719228306784,0.79007664,126.58,126.52,6.0673]
[1719228306785,8.69077664,126.58,126.52,6.0673]
[1719228307024,0.79007664,126.58,126.52,6.0673]
[1719228307163,0.79007664,126.58,126.52,106.0673]
[1719228307473,0.79007664,126.58,126.54,100.0]
[1719228308055,0.79007664,126.58,126.55,1.57804608]
[1719228308763,0.79007664,126.58,126.54,100.0]
[1719228309163,43.42540833,126.64,126.56,121.4797]
[1719228309164,8.19989981,126.64,126.56,121.4797]
[1719228309367,8.19989981,126.64,126.57,100.0]
[1719228309368,7.8967,126.64,126.57,100.0]
[1719228309586,7.8963,126.65,126.57,107.9005]
[1719228309884,7.8951,126.66,126.58,107.8996]
[1719228310182,1.98148251,126.69,126.58,483.9]
[1719228310361,7.8958,126.65,126.58,483.9]
[1719228310673,7.8954,126.66,126.6,100.0]
[1719228310882,7.8959,126.65,126.6,100.0]
[1719228311283,7.8958,126.65,126.6,100.0]
[1719228311584,7.8952,126.66,126.6,100.0]
[1719228312562,7.8958,126.65,126.6,100.0]
[1719228312764,7.8954,126.66,126.6,100.0]
[1719228312959,7.8964,126.64,126.59,100.0]
[1719228313285,7.8995,126.59,126.58,383.9]
[1719228313458,7.8998,126.59,126.53,390.2997]
[1719228314981,7.9011,126.57,126.53,390.2997]
[1719228315182,28.96148251,126.63,126.53,390.2997]
[1719228315385,7.9018,126.56,126.53,390.2997]
[1719228315585,7.901,126.57,126.53,390.2997]
[1719228316578,7.9016,126.56,126.53,6.3997]
[1719228317283,21.73038251,126.59,126.53,6.3997]
[1719228317483,7.901,126.57,126.53,6.3997]
[1719228317888,7.9003,126.58,126.53,6.3997]
[1719228318385,7.8998,126.59,126.53,6.3997]
[1719228318683,19.743,126.63,126.53,206.3997]
[1719228318868,7.8997,126.59,126.53,106.3997]
[1719228319485,0.79032641,126.54,126.53,106.3997]
[1719228319979,0.79032641,126.54,126.53,6.3997]
[1719228320363,0.79032641,126.54,126.53,106.3997]
[1719228320675,0.79032641,126.54,126.53,590.2997]
[1719228320889,1.98148251,126.63,126.55,200.0]
[1719228320890,7.8972,126.63,126.55,200.0]
[1719228321194,7.897,126.63,126.56,16.2663]
[1719228321887,7.8977,126.62,126.56,16.2663]
[1719228322184,19.7403,126.65,126.56,16.2663]
[1719228322389,19.7403,126.65,126.56,400.1663]
[1719228322586,26.98,126.66,126.59,6.0804]
[1719228322796,7.8954,126.66,126.59,106.0804]
[1719228323261,7.8954,126.66,126.6,1.4442617]
[1719228323665,52.96348339,126.69,126.6,1.4442617]
[1719228323888,7.8954,126.66,126.6,1.4442617]
[1719228324872,7.8966,126.64,126.59,6.0804]
[1719228325270,7.897,126.63,126.59,6.0804]
[1719228325601,7.8973,126.63,126.59,6.0804]
[1719228325894,7.8983,126.61,126.59,6.0804]
[1719228326069,7.8986,126.61,126.59,6.0804]
[1719228326383,26.98,126.66,126.56,406.4555]
[1719228326384,46.7237,126.63,126.56,406.4555]
[1719228326578,7.8999,126.59,126.56,22.5555]
[1719228326980,26.98,126.63,126.56,22.5555]
[1719228326981,7.9002,126.58,126.56,22.5555]
[1719228327189,7.9007,126.57,126.56,6.2892]
[1719228327482,46.7281,126.6,126.53,21.3904]
[1719228327691,7.9009,126.57,126.53,21.3904]
[1719228328689,26.98,126.6,126.53,21.3904]
[1719228328884,26.98,126.63,126.53,29.2935]
[1719228329095,7.8985,126.61,126.53,29.2935]
[1719228329389,1.98148251,126.65,126.53,21.3904]
[1719228329594,7.9002,126.58,126.53,21.3904]
[1719228330099,7.8998,126.59,126.53,21.3904]
[1719228330680,7.9001,126.58,126.53,21.3904]
[1719228330890,7.9009,126.57,126.53,21.3904]
[1719228332095,7.9004,126.58,126.53,21.3904]
[1719228332800,7.8996,126.59,126.53,21.3904]
[1719228333598,26.98,126.61,126.54,100.0]
[1719228333803,7.8983,126.61,126.54,100.0]
[1719228334000,7.8991,126.6,126.54,100.0]
[1719228334207,7.8986,126.61,126.54,100.0]
[1719228334512,7.8967,126.64,126.56,100.0]
[1719228334679,1.98148251,126.63,126.57,6.0447]
[1719228334886,7.8991,126.6,126.57,6.0447]
[1719228335188,7.8997,126.59,126.57,6.0447]
[1719228335713,7.9003,126.58,126.55,383.9]
[1719228336005,7.9018,126.56,126.53,21.7394]
[1719228336186,7.901,126.57,126.53,21.7394]
[1719228337094,7.9011,126.57,126.53,21.7394]
[1719228337292,7.9014,126.56,126.53,21.7394]
[1719228337698,7.9009,126.57,126.53,21.7394]
[1719228338410,7.9014,126.56,126.53,21.7394]
[1719228338596,7.901,126.57,126.53,21.7394]
[1719228339386,0.79032641,126.54,126.53,21.7394]
[1719228340703,0.79032641,126.54,126.5,406.6435]
[1719228341523,0.79032641,126.54,126.5,22.7435]
[1719228342191,8.69322641,126.54,126.5,22.7435]
[1719228342811,0.79032641,126.54,126.5,22.7435]
[1719228349915,0.79032641,126.54,126.51,100.0]
[1719228350805,0.79032641,126.54,126.5,22.7435]
[1719228351602,8.69302641,126.54,126.5,22.7435]
[1719228352703,0.79032641,126.54,126.5,22.7435]
[1719228353408,8.69302641,126.54,126.5,22.7435]
[1719228354321,7.9033,126.53,126.47,405.9952]
[1719228354623,7.9033,126.53,126.47,22.0952]
[1719228355523,0.79032641,126.54,126.47,22.0952]
[1719228355826,8.69332641,126.54,126.47,22.0952]
[1719228356510,0.79032641,126.54,126.47,22.0952]
[1719228358208,7.9042,126.52,126.47,22.0952]
[1719228358433,7.9035,126.53,126.47,22.0952]
[1719228359547,0.79032641,126.48,126.47,22.0952]
[1719228359728,9.48889006,126.6,126.48,100.0]
[1719228359932,7.901,126.57,126.5,100.0]
[1719228360106,28.96148251,126.59,126.5,100.0]
[1719228360306,7.9016,126.56,126.5,100.0]
[1719228360511,7.9016,126.56,126.51,0.49509232]
[1719228360723,7.9021,126.55,126.51,0.49509232]
[1719228361726,7.9016,126.56,126.51,0.49509232]
[1719228361928,7.902,126.55,126.48,483.9]
[1719228362127,7.9028,126.54,126.48,483.9]
[1719228362625,7.9023,126.55,126.48,483.9]
[1719228362824,21.73288251,126.58,126.48,483.9]
[1719228363128,7.903,126.54,126.48,483.9]
[1719228363916,7.9023,126.55,126.48,483.9]
[1719228364312,7.9026,126.54,126.48,483.9]
[1719228364509,7.9022,126.55,126.48,483.9]
[1719228364734,26.98,126.59,126.48,483.9]
[1719228364735,19.7492,126.59,126.5,100.0]
[1719228364929,7.9008,126.57,126.5,100.0]
[1719228365130,7.9011,126.57,126.5,100.0]
[1719228365520,7.9017,126.56,126.48,491.8063]
[1719228365834,7.9017,126.56,126.5,100.0]
[1719228367618,7.9021,126.55,126.5,100.0]
[1719228368015,7.9016,126.56,126.5,100.0]
[1719228369038,7.9016,126.56,126.48,483.9]
[1719228369428,19.7518,126.58,126.48,483.9]
[1719228369627,7.9027,126.54,126.48,483.9]
[1719228370033,7.9023,126.55,126.48,483.9]
[1719228370419,7.9023,126.55,126.48,383.9]
[1719228370615,7.9041,126.52,126.47,22.0952]
[1719228371230,7.9018,126.56,126.48,100.0]
[1719228371434,21.73438251,126.57,126.48,100.0]
[1719228371644,7.9016,126.56,126.48,100.0]
[1719228371940,30.058,126.58,126.48,100.0]
[1719228371941,7.9021,126.55,126.48,100.0]
[1719228372342,7.9026,126.54,126.48,100.0]
[1719228372523,7.9019,126.56,126.48,100.0]
[1719228372725,3.078,126.58,126.5,100.0]
[1719228372924,7.9011,126.57,126.5,100.0]
[1719228373427,7.9015,126.56,126.5,100.0]
[1719228373631,7.9015,126.56,126.48,207.9059]
[1719228373955,7.9008,126.57,126.5,100.0]
[1719228374251,7.9021,126.55,126.48,100.0]
[1719228374454,7.9021,126.55,126.48,383.9]
[1719228374830,7.9027,126.54,126.48,383.9]
[1719228375030,7.9036,126.53,126.48,383.9]
[1719228375546,48.71598251,126.56,126.48,383.9]
[1719228375755,7.9035,126.53,126.48,383.9]
[1719228376058,7.903,126.54,126.48,383.9]
[1719228376650,7.9022,126.55,126.48,383.9]
[1719228376957,7.9027,126.54,126.48,383.9]
[1719228377456,7.9042,126.52,126.48,383.9]
[1719228377644,7.9034,126.53,126.48,383.9]
[1719228377821,7.9035,126.53,126.48,383.9]
[1719228379155,7.9042,126.52,126.48,383.9]
[1719228379363,7.9049,126.51,126.48,383.9]
[1719228379536,0.79063884,126.5,126.48,383.9]
[1719228380254,0.79063884,126.5,126.47,122.0952]
[1719228380255,0.79063884,126.5,126.47,505.9952]
[1719228380638,0.79063884,126.5,126.47,513.902]
[1719228381339,0.79063884,126.5,126.47,405.9952]
[1719228382155,8.69623884,126.5,126.47,405.9952]
[1719228382656,7.9063,126.48,126.47,383.9]
[1719228382828,7.9063,126.48,126.43,122.1965]
[1719228382829,7.9066,126.48,126.43,122.1965]
[1719228383549,7.906,126.49,126.43,122.1965]
[1719228383752,7.9065,126.48,126.43,22.1965]
[1719228383928,26.98,126.47,126.4,100.0]
[1719228384323,34.8873,126.47,126.4,100.0]
[1719228384923,26.98,126.47,126.4,100.0]
[1719228385359,49.51602135,126.5,126.42,100.0]
[1719228385539,7.9066,126.48,126.42,100.0]
[1719228386336,47.53453884,126.5,126.42,100.0]
[1719228386756,7.9072,126.47,126.42,100.0]
[1719228386936,7.9066,126.48,126.42,100.0]
[1719228387136,7.9072,126.47,126.42,100.0]
[1719228387437,7.909,126.44,126.39,383.9]
[1719228387850,7.9085,126.45,126.39,383.9]
[1719228388040,20.55423884,126.5,126.41,100.0]
[1719228388375,1.98148251,126.49,126.41,100.0]
[1719228388656,47.53423884,126.5,126.41,100.0]
[1719228388826,1.98148251,126.49,126.41,100.0]
[1719228389031,7.908,126.46,126.41,100.0]
[1719228389459,7.908,126.46,126.39,100.0]
[1719228390751,21.74688251,126.49,126.41,100.0]
[1719228390959,7.9068,126.48,126.41,100.0]
[1719228391172,1.98148251,126.49,126.41,100.0]
[1719228391459,7.9072,126.47,126.41,100.0]
[1719228391639,21.74698251,126.49,126.41,100.0]
[1719228392069,7.9086,126.45,126.38,605.7777]
[1719228392239,21.74848251,126.48,126.4,100.0]
[1719228392560,7.9079,126.46,126.4,100.0]
[1719228392860,0.79063884,126.5,126.41,29.6051]
[1719228393031,0.79063884,126.5,126.44,100.0]
[1719228393234,0.79063884,126.5,126.47,21.6911]
[1719228393455,0.79063884,126.5,126.47,405.5911]
[1719228393643,0.79063884,126.5,126.48,100.0]
[1719228393849,0.79063884,126.5,126.48,200.0]
[1719228394055,0.79063884,126.5,126.48,207.9061]
[1719228394257,0.79063884,126.5,126.48,200.0]
[1719228394442,8.20338163,126.62,126.52,100.0]
[1719228394757,7.9001,126.58,126.52,483.9]
[1719228395341,7.8991,126.6,126.52,583.9]
[1719228395661,7.8995,126.59,126.52,583.9]
[1719228395855,7.8995,126.59,126.52,483.9]
[1719228396049,21.72878251,126.6,126.52,383.9]
[1719228396348,7.9004,126.58,126.52,383.9]
[1719228396548,19.7534,126.57,126.49,100.0]
[1719228396735,19.7534,126.57,126.47,121.6911]
[1719228396736,7.9024,126.55,126.47,121.6911]
[1719228396941,26.98,126.58,126.47,605.5911]
[1719228397148,7.9024,126.55,126.47,605.5911]
[1719228397458,7.9016,126.56,126.47,605.5911]
[1719228397757,7.9009,126.57,126.49,100.0]
[1719228397954,21.73048251,126.59,126.49,100.0]
[1719228398163,7.9017,126.56,126.49,100.0]
[1719228398657,7.9001,126.58,126.51,100.0]
[1719228399157,26.98,126.6,126.51,200.0]
[1719228399158,7.8997,126.59,126.51,200.0]
[1719228399344,7.9005,126.58,126.51,100.0]
[1719228399538,0.79045135,126.53,126.51,100.0]
[1719228399941,0.79045135,126.53,126.51,200.0]
[1719228400360,0.79045135,126.53,126.49,583.9]
[1719228401456,0.79045135,126.53,126.51,200.0]
[1719228401840,7.9001,126.59,126.53,100.0]
[1719228402662,18.2661,126.66,126.55,100.0]
[1719228402859,26.98,126.64,126.55,100.0]
[1719228403070,28.96148251,126.64,126.55,100.0]
[1719228403247,7.8986,126.61,126.55,100.0]
[1719228403447,7.8979,126.62,126.55,200.0]
[1719228403651,7.8985,126.61,126.55,483.9]
[1719228403955,7.8992,126.6,126.55,383.9]
[1719228404145,7.8992,126.6,126.54,16.3631]
[1719228404351,7.8995,126.59,126.54,16.3631]
[1719228404851,21.72518251,126.63,126.54,16.3631]
[1719228405048,7.8991,126.6,126.54,16.3631]
[1719228405242,7.8993,126.6,126.54,16.3631]
[1719228405442,7.8992,126.6,126.54,16.3631]
[1719228405658,19.7453,126.62,126.54,16.3631]
[1719228405839,7.901,126.57,126.53,383.9]
[1719228406240,7.9017,126.56,126.53,383.9]
[1719228406844,7.9009,126.57,126.53,383.9]
[1719228407054,19.7517,126.58,126.51,15.2714]
[1719228407247,7.9023,126.55,126.51,15.2714]
[1719228407463,7.9028,126.54,126.5,383.9]
[1719228407665,7.9028,126.54,126.49,6.537]
[1719228408363,7.9021,126.55,126.49,6.537]
[1719228408567,48.71478251,126.57,126.49,6.537]
[1719228408765,46.2126,126.6,126.49,6.537]
[1719228408766,7.9029,126.54,126.49,6.537]
[1719228408947,50.7926,126.6,126.45,6.5618]
[1719228408948,7.9043,126.52,126.45,6.5618]
[1719228409251,7.905,126.51,126.45,6.5618]
[1719228409657,7.9041,126.52,126.45,6.5618]
[1719228410452,7.9041,126.52,126.45,390.4618]
[1719228410856,19.7578,126.54,126.46,100.0]
[1719228410857,7.903,126.54,126.46,100.0]
[1719228411059,7.9034,126.53,126.46,100.0]
[1719228411363,7.9029,126.54,126.46,100.0]
[1719228411577,21.73608251,126.56,126.45,490.4618]
[1719228412104,7.9037,126.53,126.45,490.4618]
[1719228412251,7.9043,126.52,126.45,390.4618]
[1719228412669,7.9054,126.5,126.45,390.4618]
[1719228413649,7.9048,126.51,126.45,390.4618]
[1719228414272,7.9055,126.5,126.45,390.4618]
[1719228414588,7.9029,126.54,126.45,598.3698]
[1719228414752,1.98148251,126.55,126.45,498.3698]
[1719228414753,7.9034,126.53,126.45,498.3698]
[1719228414947,7.9038,126.52,126.45,490.4618]
[1719228415566,7.9034,126.53,126.45,590.4618]
[1719228415770,7.9034,126.53,126.45,490.4618]
[1719228416190,7.9039,126.52,126.45,390.4618]
[1719228417272,21.73768251,126.55,126.45,490.4618]
[1719228417476,1.98148251,126.56,126.45,598.3699]
[1719228417691,1.98148251,126.56,126.45,498.3699]
[1719228417898,7.9036,126.53,126.45,498.3699]
[1719228418282,7.9036,126.53,126.45,590.4618]
[1719228418477,7.9036,126.53,126.45,490.4618]
[1719228418664,7.9035,126.53,126.45,490.4618]
[1719228418866,7.9035,126.53,126.45,390.4618]
[1719228419090,7.9035,126.53,126.45,490.4618]
[1719228419276,7.9035,126.53,126.45,498.37]
[1719228419621,7.9018,126.56,126.48,200.0]
[1719228419772,6.32098855,126.59,126.5,200.0]
[1719228419964,7.8999,126.59,126.5,200.0]
[1719228420160,7.8999,126.59,126.51,7.9041]
[1719228420379,7.8999,126.59,126.5,200.0]
[1719228420380,21.735983,126.62,126.53,16.0309]
[1719228420681,23.6117,126.63,126.53,23.9337]
[1719228420682,7.8985,126.61,126.53,23.9337]
[1719228421088,7.8985,126.61,126.53,16.0309]
[1719228421471,7.8985,126.61,126.53,23.9341]
[1719228421677,7.8985,126.61,126.53,16.0309]
[1719228421878,7.8989,126.6,126.53,16.0309]
[1719228422494,7.8984,126.61,126.54,6.0026]
[1719228422666,7.8984,126.61,126.54,106.0026]
[1719228423091,7.8984,126.61,126.54,6.0026]
[1719228423295,21.72688251,126.62,126.54,6.0026]
[1719228423507,19.7454,126.62,126.54,6.0026]
[1719228423680,7.8984,126.61,126.54,6.0026]
[1719228423880,6.50921766,126.63,126.54,6.0026]
[1719228423881,7.8989,126.6,126.54,6.0026]
[1719228424183,1.98148251,126.63,126.54,6.0026]
[1719228424385,7.8976,126.63,126.54,6.0026]
[1719228424600,7.8983,126.61,126.54,6.0026]
[1719228425200,7.8983,126.61,126.54,489.9026]
[1719228425381,7.8989,126.6,126.54,489.9026]
[1719228426102,19.7444,126.62,126.54,389.9026]
[1719228426287,7.8998,126.59,126.54,389.9026]
[1719228426892,7.899,126.6,126.54,389.9026]
[1719228427158,7.8995,126.59,126.54,389.9026]
[1719228427279,7.901,126.57,126.54,389.9026]
[1719228427784,7.9003,126.58,126.54,389.9026]
[1719228427993,7.9008,126.57,126.54,389.9026]
[1719228428690,7.9009,126.57,126.54,389.9026]
[1719228428897,19.7481,126.6,126.54,389.9026]
[1719228429081,7.9008,126.57,126.54,389.9026]
[1719228429281,7.9015,126.56,126.54,389.9026]
[1719228429485,7.9015,126.56,126.54,6.0026]
[1719228429997,1.98148251,126.63,126.54,6.0026]
[1719228430201,19.7498,126.59,126.51,6.0718]
[1719228430407,7.902,126.55,126.51,6.0718]
[1719228430596,7.9017,126.56,126.51,6.0718]